[Event "December 19 Early 2023"]
[Site "https://www.chess.com"]
[Date "2023.12.19"]
[Round "6"]
[White "Chan, Yi Ren Daniel"]
[Black "Zhigalko, Sergei"]
[Result "0-1"]
[Board "23"]
[TimeControl "180+1"]
[WhiteFideId "5801583"]
[BlackFideId "13502956"]
[WhiteElo "2375"]
[BlackElo "2616"]
[WhiteTeam "SGP"]
[BlackTeam "BLR"]
[WhiteClock "0:00:03"]
[BlackClock "0:00:07"]

1. e4 {[%clk 0:03:00]}  c5 {[%clk 0:03:00]} 2. Nf3 {[%clk 0:03:01]}  Nc6 {[%clk 0:03:00]} 3. Nc3 {[%clk 0:02:59]}  Nf6 {[%clk 0:03:00]} 4. d4 {[%clk 0:02:59]}  cxd4 {[%clk 0:03:01]} 5. Nxd4 {[%clk 0:03:00]}  e5 {[%clk 0:03:01]} 6. Ndb5 {[%clk 0:03:01]}  d6 {[%clk 0:03:00]} 7. Nd5 {[%clk 0:03:01]}  Nxd5 {[%clk 0:02:59]} 8. exd5 {[%clk 0:03:02]}  Nb8 {[%clk 0:03:00]} 9. a4 {[%clk 0:03:02]}  Be7 {[%clk 0:03:00]} 10. Be3 {[%clk 0:03:01]}  O-O {[%clk 0:02:56]} 11. a5 {[%clk 0:02:59]}  Bd7 {[%clk 0:02:28]} 12. Nxa7 {[%clk 0:02:58]}  Bg5 {[%clk 0:02:28]} 13. Bb6 {[%clk 0:02:57]}  Qe7 {[%clk 0:02:23]} 14. Be2 {[%clk 0:02:47]}  Na6 {[%clk 0:02:04]} 15. O-O {[%clk 0:02:39]}  f5 {[%clk 0:01:55]} 16. c4 {[%clk 0:02:09]}  e4 {[%clk 0:01:37]} 17. f4 {[%clk 0:02:07]}  exf3 {[%clk 0:01:33]} 18. Bxf3 {[%clk 0:02:07]}  Be3+ {[%clk 0:01:22]} 19. Kh1 {[%clk 0:02:07]}  Bxb6 {[%clk 0:00:55]} 20. axb6 {[%clk 0:02:06]}  Qe3 {[%clk 0:00:56]} 21. Nb5 {[%clk 0:01:19]}  Qxb6 {[%clk 0:00:55]} 22. Qd4 {[%clk 0:01:19]}  Qxd4 {[%clk 0:00:49]} 23. Nxd4 {[%clk 0:01:20]}  Nb4 {[%clk 0:00:46]} 24. h3 {[%clk 0:01:18]}  g6 {[%clk 0:00:40]} 25. b3 {[%clk 0:01:13]}  Rfe8 {[%clk 0:00:38]} 26. Ne6 {[%clk 0:01:00]}  Rec8 {[%clk 0:00:09]} 27. h4 {[%clk 0:00:46]}  Nd3 {[%clk 0:00:07]} 28. Kh2 {[%clk 0:00:39]}  Ne5 {[%clk 0:00:06]} 29. Nd4 {[%clk 0:00:30]}  Kg7 {[%clk 0:00:05]} 30. Kg3 {[%clk 0:00:28]}  Kf6 {[%clk 0:00:05]} 31. Rfe1 {[%clk 0:00:24]}  h6 {[%clk 0:00:05]} 32. Rh1 {[%clk 0:00:17]}  Re8 {[%clk 0:00:04]} 33. Nc2 {[%clk 0:00:07]}  Nd3 {[%clk 0:00:04]} 34. Nd4 {[%clk 0:00:07]}  f4+ {[%clk 0:00:02]} 35. Kh2 {[%clk 0:00:08]}  Nc5 {[%clk 0:00:02]} 36. Rhf1 {[%clk 0:00:07]}  Nd3 {[%clk 0:00:02]} 37. Rad1 {[%clk 0:00:06]}  Ne5 {[%clk 0:00:02]} 38. Be4 {[%clk 0:00:06]}  g5 {[%clk 0:00:02]} 39. Bc2 {[%clk 0:00:04]}  Ng4+ {[%clk 0:00:03]} 40. Kg1 {[%clk 0:00:04]}  Ne3 {[%clk 0:00:04]} 41. hxg5+ {[%clk 0:00:04]}  hxg5 {[%clk 0:00:04]} 42. Bd3 {[%clk 0:00:05]}  Nxd1 {[%clk 0:00:03]} 43. Rxd1 {[%clk 0:00:05]}  Re3 {[%clk 0:00:04]} 44. Bf1 {[%clk 0:00:04]}  Rae8 {[%clk 0:00:04]} 45. b4 {[%clk 0:00:05]}  Re1 {[%clk 0:00:04]} 46. Rd2 {[%clk 0:00:05]}  R8e4 {[%clk 0:00:04]} 47. c5 {[%clk 0:00:05]}  Rc1 {[%clk 0:00:03]} 48. c6 {[%clk 0:00:04]}  bxc6 {[%clk 0:00:03]} 49. dxc6 {[%clk 0:00:05]}  Bxc6 {[%clk 0:00:03]} 50. Nb3 {[%clk 0:00:04]}  Rb1 {[%clk 0:00:02]} 51. Rxd6+ {[%clk 0:00:04]}  Ke5 {[%clk 0:00:03]} 52. Rxc6 {[%clk 0:00:04]}  Rxb3 {[%clk 0:00:03]} 53. b5 {[%clk 0:00:04]}  Rb1 {[%clk 0:00:02]} 54. Kf2 {[%clk 0:00:04]}  Rb2+ {[%clk 0:00:03]} 55. Kg1 {[%clk 0:00:04]}  Re1 {[%clk 0:00:03]} 56. Rc5+ {[%clk 0:00:05]}  Kf6 {[%clk 0:00:03]} 57. Rc6+ {[%clk 0:00:05]}  Kg7 {[%clk 0:00:03]} 58. Rc7+ {[%clk 0:00:06]}  Kg6 {[%clk 0:00:03]} 59. Rc6+ {[%clk 0:00:06]}  Kf5 {[%clk 0:00:04]} 60. Rc5+ {[%clk 0:00:07]}  Kg4 {[%clk 0:00:04]} 61. Rc3 {[%clk 0:00:07]}  Rbb1 {[%clk 0:00:04]} 62. Rf3 {[%clk 0:00:08]}  Rxb5 {[%clk 0:00:03]} 63. Kh2 {[%clk 0:00:08]}  Rbb1 {[%clk 0:00:03]} 64. Kg1 {[%clk 0:00:09]}  Red1 {[%clk 0:00:03]} 65. Rf2 {[%clk 0:00:09]}  Kf5 {[%clk 0:00:03]} 66. Rf3 {[%clk 0:00:10]}  g4 {[%clk 0:00:03]} 67. Rf2 {[%clk 0:00:10]}  Kg5 {[%clk 0:00:04]} 68. g3 {[%clk 0:00:05]}  f3 {[%clk 0:00:04]} 69. Kh2 {[%clk 0:00:03]}  Re1 {[%clk 0:00:03]} 70. Kg1 {[%clk 0:00:02]}  Kf6 {[%clk 0:00:04]} 71. Kh2 {[%clk 0:00:03]}  Ke5 {[%clk 0:00:04]} 72. Kg1 {[%clk 0:00:03]}  Kd4 {[%clk 0:00:05]} 73. Kh2 {[%clk 0:00:04]}  Ke3 {[%clk 0:00:05]} 74. Kg1 {[%clk 0:00:05]}  Rec1 {[%clk 0:00:05]} 75. Kh2 {[%clk 0:00:05]}  Kxf2 {[%clk 0:00:05]} 76. Bg2 {[%clk 0:00:03]}  Rd1 {[%clk 0:00:05]} 77. Bf1 {[%clk 0:00:02]}  Kxf1 {[%clk 0:00:05]} 78. Kh1 {[%clk 0:00:02]}  Kf2+ {[%clk 0:00:06]} 79. Kh2 {[%clk 0:00:03]}  Rh1# {[%clk 0:00:07]} 0-1

[Event "December 19 Early 2023"]
[Site "https://www.chess.com"]
[Date "2023.12.19"]
[Round "6"]
[White "Shevchenko, Kirill"]
[Black "Leiva, Gianmarco"]
[Result "1-0"]
[Board "26"]
[TimeControl "180+1"]
[WhiteFideId "14129574"]
[BlackFideId "3804399"]
[WhiteElo "2603"]
[BlackElo "2338"]
[WhiteTeam "ROU"]
[BlackTeam "PER"]
[WhiteClock "0:00:02"]
[BlackClock "0:00:00"]

1. d4 {[%clk 0:02:53]}  Nf6 {[%clk 0:02:57]} 2. c4 {[%clk 0:02:52]}  e6 {[%clk 0:02:57]} 3. Nc3 {[%clk 0:02:52]}  Bb4 {[%clk 0:02:55]} 4. e3 {[%clk 0:02:52]}  O-O {[%clk 0:02:53]} 5. Bd3 {[%clk 0:02:51]}  d5 {[%clk 0:02:52]} 6. a3 {[%clk 0:02:50]}  Bxc3+ {[%clk 0:02:52]} 7. bxc3 {[%clk 0:02:51]}  dxc4 {[%clk 0:02:48]} 8. Bxc4 {[%clk 0:02:51]}  c5 {[%clk 0:02:49]} 9. Bb2 {[%clk 0:02:48]}  Qc7 {[%clk 0:02:43]} 10. Bd3 {[%clk 0:02:44]}  e5 {[%clk 0:02:23]} 11. dxe5 {[%clk 0:02:40]}  Qxe5 {[%clk 0:02:24]} 12. Nf3 {[%clk 0:02:39]}  Qe7 {[%clk 0:02:22]} 13. c4 {[%clk 0:02:38]}  Nbd7 {[%clk 0:02:15]} 14. O-O {[%clk 0:02:34]}  b6 {[%clk 0:02:07]} 15. e4 {[%clk 0:01:33]}  Bb7 {[%clk 0:02:03]} 16. Re1 {[%clk 0:01:33]}  Rfd8 {[%clk 0:01:43]} 17. e5 {[%clk 0:01:19]}  Nh5 {[%clk 0:01:44]} 18. Re3 {[%clk 0:00:41]}  Nf4 {[%clk 0:01:09]} 19. Bf1 {[%clk 0:00:41]}  Nf8 {[%clk 0:01:07]} 20. Qe1 {[%clk 0:00:33]}  Rd7 {[%clk 0:00:34]} 21. e6 {[%clk 0:00:25]}  N8xe6 {[%clk 0:00:30]} 22. Ne5 {[%clk 0:00:20]}  Rd6 {[%clk 0:00:23]} 23. Rg3 {[%clk 0:00:18]}  Rad8 {[%clk 0:00:19]} 24. Ng4 {[%clk 0:00:18]}  Ng6 {[%clk 0:00:16]} 25. f4 {[%clk 0:00:10]}  Nd4 {[%clk 0:00:16]} 26. Nh6+ {[%clk 0:00:05]}  Kf8 {[%clk 0:00:11]} 27. Re3 {[%clk 0:00:06]}  Re6 {[%clk 0:00:11]} 28. Rxe6 {[%clk 0:00:04]}  Qxe6 {[%clk 0:00:10]} 29. Qxe6 {[%clk 0:00:02]}  Nxe6 {[%clk 0:00:00]} 30. Nxf7 {[%clk 0:00:02]} 1-0

[Event "December 19 Early 2023"]
[Site "https://www.chess.com"]
[Date "2023.12.19"]
[Round "6"]
[White "Zakhartsov, Vladimir"]
[Black "Krysa, Leandro"]
[Result "1-0"]
[Board "28"]
[TimeControl "180+1"]
[WhiteFideId "4145097"]
[BlackFideId "116807"]
[WhiteElo "2448"]
[BlackElo "2495"]
[WhiteTeam "RUS"]
[BlackTeam "ARG"]
[WhiteClock "0:00:16"]
[BlackClock "0:00:00"]

1. d4 {[%clk 0:02:43]}  Nf6 {[%clk 0:03:00]} 2. c4 {[%clk 0:02:36]}  g6 {[%clk 0:03:00]} 3. Nc3 {[%clk 0:02:36]}  d5 {[%clk 0:03:00]} 4. cxd5 {[%clk 0:02:32]}  Nxd5 {[%clk 0:03:00]} 5. e4 {[%clk 0:02:33]}  Nxc3 {[%clk 0:03:00]} 6. bxc3 {[%clk 0:02:34]}  Bg7 {[%clk 0:03:00]} 7. Bb5+ {[%clk 0:02:34]}  c6 {[%clk 0:02:59]} 8. Ba4 {[%clk 0:02:33]}  O-O {[%clk 0:02:55]} 9. Ne2 {[%clk 0:02:32]}  e5 {[%clk 0:02:42]} 10. O-O {[%clk 0:02:13]}  b5 {[%clk 0:02:42]} 11. Bb3 {[%clk 0:02:10]}  a5 {[%clk 0:02:42]} 12. Be3 {[%clk 0:01:58]}  a4 {[%clk 0:02:24]} 13. Bc2 {[%clk 0:01:59]}  Be6 {[%clk 0:02:20]} 14. f4 {[%clk 0:01:57]}  exd4 {[%clk 0:02:16]} 15. cxd4 {[%clk 0:01:55]}  Bc4 {[%clk 0:02:16]} 16. Bd3 {[%clk 0:01:55]}  Bxd3 {[%clk 0:02:07]} 17. Qxd3 {[%clk 0:01:56]}  Nd7 {[%clk 0:02:06]} 18. Rac1 {[%clk 0:01:56]}  Rc8 {[%clk 0:02:01]} 19. d5 {[%clk 0:01:53]}  cxd5 {[%clk 0:01:41]} 20. Rcd1 {[%clk 0:01:52]}  Nc5 {[%clk 0:01:34]} 21. Bxc5 {[%clk 0:01:43]}  Rxc5 {[%clk 0:01:34]} 22. e5 {[%clk 0:01:44]}  d4 {[%clk 0:01:14]} 23. Nxd4 {[%clk 0:01:33]}  Qd5 {[%clk 0:01:04]} 24. Qe2 {[%clk 0:01:30]}  Qc4 {[%clk 0:00:57]} 25. Qxc4 {[%clk 0:01:10]}  bxc4 {[%clk 0:00:50]} 26. Rc1 {[%clk 0:01:06]}  c3 {[%clk 0:00:46]} 27. Rc2 {[%clk 0:01:01]}  Rfc8 {[%clk 0:00:24]} 28. Rfc1 {[%clk 0:00:53]}  f6 {[%clk 0:00:20]} 29. Ne6 {[%clk 0:00:47]}  Rc4 {[%clk 0:00:20]} 30. Nxg7 {[%clk 0:00:46]}  Kxg7 {[%clk 0:00:21]} 31. exf6+ {[%clk 0:00:46]}  Kxf6 {[%clk 0:00:21]} 32. g3 {[%clk 0:00:46]}  Kf5 {[%clk 0:00:20]} 33. Kf2 {[%clk 0:00:46]}  Ke4 {[%clk 0:00:20]} 34. Ke2 {[%clk 0:00:46]}  a3 {[%clk 0:00:15]} 35. Rb1 {[%clk 0:00:41]}  h5 {[%clk 0:00:08]} 36. Rb3 {[%clk 0:00:39]}  h4 {[%clk 0:00:06]} 37. Rxa3 {[%clk 0:00:38]}  h3 {[%clk 0:00:06]} 38. Ra6 {[%clk 0:00:32]}  Rb4 {[%clk 0:00:03]} 39. Re6+ {[%clk 0:00:20]}  Kf5 {[%clk 0:00:03]} 40. Re5+ {[%clk 0:00:19]}  Kf6 {[%clk 0:00:04]} 41. Kd3 {[%clk 0:00:18]}  Rb2 {[%clk 0:00:03]} 42. Rxb2 {[%clk 0:00:15]}  cxb2 {[%clk 0:00:02]} 43. Rb5 {[%clk 0:00:16]}  Rd8+ {[%clk 0:00:02]} 44. Ke3 {[%clk 0:00:16]}  Rd1 {[%clk 0:00:01]} 45. Rxb2 {[%clk 0:00:16]}  Rg1 {[%clk 0:00:01]} 46. Kf3 {[%clk 0:00:16]}  Rf1+ {[%clk 0:00:00]} 47. Kg4 {[%clk 0:00:16]} 1-0

[Event "December 19 Early 2023"]
[Site "https://www.chess.com"]
[Date "2023.12.19"]
[Round "6"]
[White "Thorfinnsson, Bjorn"]
[Black "Szpar, Milosz"]
[Result "0-1"]
[Board "32"]
[TimeControl "180+1"]
[WhiteFideId "2300982"]
[BlackFideId "1184989"]
[WhiteElo "2394"]
[BlackElo "2446"]
[WhiteTeam "ISL"]
[BlackTeam "POL"]
[WhiteClock "0:00:06"]
[BlackClock "0:00:04"]

1. d4 {[%clk 0:02:57]}  d5 {[%clk 0:03:00]} 2. Nf3 {[%clk 0:02:56]}  Nf6 {[%clk 0:02:59]} 3. Bg5 {[%clk 0:02:56]}  Ne4 {[%clk 0:02:58]} 4. e3 {[%clk 0:02:57]}  Nxg5 {[%clk 0:02:52]} 5. Nxg5 {[%clk 0:02:57]}  e5 {[%clk 0:02:39]} 6. Nf3 {[%clk 0:02:53]}  e4 {[%clk 0:02:38]} 7. Nfd2 {[%clk 0:02:52]}  c6 {[%clk 0:02:36]} 8. c4 {[%clk 0:02:52]}  Nd7 {[%clk 0:02:34]} 9. Nc3 {[%clk 0:02:52]}  Nf6 {[%clk 0:02:33]} 10. Qb3 {[%clk 0:02:50]}  a6 {[%clk 0:02:30]} 11. cxd5 {[%clk 0:02:34]}  cxd5 {[%clk 0:02:29]} 12. Na4 {[%clk 0:02:34]}  b5 {[%clk 0:02:09]} 13. Nc5 {[%clk 0:02:32]}  Bxc5 {[%clk 0:01:46]} 14. dxc5 {[%clk 0:02:31]}  d4 {[%clk 0:01:47]} 15. exd4 {[%clk 0:02:26]}  Qxd4 {[%clk 0:01:47]} 16. O-O-O {[%clk 0:02:00]}  Qxc5+ {[%clk 0:01:44]} 17. Kb1 {[%clk 0:01:58]}  Be6 {[%clk 0:01:41]} 18. Qe3 {[%clk 0:01:54]}  Qd5 {[%clk 0:01:17]} 19. b3 {[%clk 0:01:12]}  O-O {[%clk 0:01:06]} 20. Be2 {[%clk 0:01:12]}  Qb7 {[%clk 0:01:01]} 21. f3 {[%clk 0:01:06]}  Nd5 {[%clk 0:01:00]} 22. Qd4 {[%clk 0:00:59]}  Nf4 {[%clk 0:00:40]} 23. Qe3 {[%clk 0:00:45]}  Nxe2 {[%clk 0:00:38]} 24. Qxe2 {[%clk 0:00:46]}  exf3 {[%clk 0:00:38]} 25. Nxf3 {[%clk 0:00:46]}  Bf5+ {[%clk 0:00:34]} 26. Kb2 {[%clk 0:00:45]}  Be4 {[%clk 0:00:35]} 27. Rhe1 {[%clk 0:00:41]}  Bg6 {[%clk 0:00:23]} 28. Ne5 {[%clk 0:00:40]}  Rae8 {[%clk 0:00:20]} 29. Qd2 {[%clk 0:00:38]}  Bf5 {[%clk 0:00:16]} 30. h3 {[%clk 0:00:35]}  h6 {[%clk 0:00:14]} 31. g4 {[%clk 0:00:35]}  Be6 {[%clk 0:00:14]} 32. Nd3 {[%clk 0:00:34]}  Rd8 {[%clk 0:00:13]} 33. Qc3 {[%clk 0:00:33]}  Rc8 {[%clk 0:00:13]} 34. Qe5 {[%clk 0:00:30]}  Rfd8 {[%clk 0:00:12]} 35. Nf4 {[%clk 0:00:29]}  Rxd1 {[%clk 0:00:11]} 36. Rxd1 {[%clk 0:00:27]}  Re8 {[%clk 0:00:06]} 37. Nh5 {[%clk 0:00:27]}  f6 {[%clk 0:00:05]} 38. Qd4 {[%clk 0:00:23]}  Bf7 {[%clk 0:00:05]} 39. Nf4 {[%clk 0:00:22]}  Re4 {[%clk 0:00:04]} 40. Qd8+ {[%clk 0:00:22]}  Re8 {[%clk 0:00:05]} 41. Qd4 {[%clk 0:00:21]}  Qf3 {[%clk 0:00:05]} 42. Rd2 {[%clk 0:00:19]}  a5 {[%clk 0:00:04]} 43. Nd3 {[%clk 0:00:14]}  a4 {[%clk 0:00:04]} 44. bxa4 {[%clk 0:00:13]}  bxa4 {[%clk 0:00:04]} 45. Qxa4 {[%clk 0:00:13]}  Rb8+ {[%clk 0:00:04]} 46. Nb4 {[%clk 0:00:12]}  Qf4 {[%clk 0:00:04]} 47. Ka3 {[%clk 0:00:06]}  Qxd2 {[%clk 0:00:04]} 0-1

[Event "December 19 Early 2023"]
[Site "https://www.chess.com"]
[Date "2023.12.19"]
[Round "6"]
[White "Cristobal, Manuel"]
[Black "Suleymanli, Aydin"]
[Result "0-1"]
[Board "36"]
[TimeControl "180+1"]
[WhiteFideId "112879"]
[BlackFideId "13413937"]
[WhiteElo "2244"]
[BlackElo "2553"]
[WhiteTeam "ARG"]
[BlackTeam "AZE"]
[WhiteClock "0:00:00"]
[BlackClock "0:00:13"]

1. d4 {[%clk 0:03:00]}  Nf6 {[%clk 0:02:59]} 2. Nf3 {[%clk 0:03:00]}  g6 {[%clk 0:02:59]} 3. e3 {[%clk 0:03:01]}  Bg7 {[%clk 0:03:00]} 4. Be2 {[%clk 0:03:01]}  O-O {[%clk 0:03:00]} 5. O-O {[%clk 0:03:01]}  c5 {[%clk 0:03:01]} 6. b3 {[%clk 0:03:00]}  cxd4 {[%clk 0:02:58]} 7. Nxd4 {[%clk 0:02:58]}  d5 {[%clk 0:02:51]} 8. Bb2 {[%clk 0:02:58]}  a6 {[%clk 0:02:50]} 9. c4 {[%clk 0:02:56]}  dxc4 {[%clk 0:02:42]} 10. Bxc4 {[%clk 0:02:56]}  b5 {[%clk 0:02:32]} 11. Be2 {[%clk 0:02:50]}  Bb7 {[%clk 0:02:31]} 12. Bf3 {[%clk 0:02:50]}  Qb6 {[%clk 0:02:29]} 13. Bxb7 {[%clk 0:02:50]}  Qxb7 {[%clk 0:02:30]} 14. Qf3 {[%clk 0:02:50]}  Qxf3 {[%clk 0:02:15]} 15. Nxf3 {[%clk 0:02:50]}  Nc6 {[%clk 0:02:15]} 16. Nc3 {[%clk 0:02:47]}  Nb4 {[%clk 0:02:15]} 17. Rfd1 {[%clk 0:02:46]}  Rfd8 {[%clk 0:02:13]} 18. Ne1 {[%clk 0:02:41]}  Ne4 {[%clk 0:02:06]} 19. Nxe4 {[%clk 0:02:38]}  Bxb2 {[%clk 0:02:05]} 20. Rxd8+ {[%clk 0:02:39]}  Rxd8 {[%clk 0:02:05]} 21. Rb1 {[%clk 0:02:40]}  Ba3 {[%clk 0:02:03]} 22. g3 {[%clk 0:02:26]}  f5 {[%clk 0:01:50]} 23. Ng5 {[%clk 0:02:26]}  Nxa2 {[%clk 0:01:49]} 24. Nc2 {[%clk 0:02:25]}  Nc3 {[%clk 0:01:23]} 25. Ra1 {[%clk 0:02:19]}  Bd6 {[%clk 0:01:14]} 26. Rxa6 {[%clk 0:02:17]}  h6 {[%clk 0:01:14]} 27. Ne6 {[%clk 0:02:17]}  Rc8 {[%clk 0:01:14]} 28. Ncd4 {[%clk 0:02:14]}  Kf7 {[%clk 0:01:13]} 29. Kg2 {[%clk 0:02:07]}  Kf6 {[%clk 0:01:10]} 30. h4 {[%clk 0:02:05]}  g5 {[%clk 0:01:07]} 31. hxg5+ {[%clk 0:02:03]}  hxg5 {[%clk 0:01:08]} 32. f4 {[%clk 0:02:02]}  g4 {[%clk 0:01:08]} 33. Ng5 {[%clk 0:01:58]}  b4 {[%clk 0:01:02]} 34. Ra5 {[%clk 0:01:51]}  Rc5 {[%clk 0:00:57]} 35. Ra8 {[%clk 0:01:39]}  e5 {[%clk 0:00:55]} 36. Ra6 {[%clk 0:01:32]}  Rd5 {[%clk 0:00:43]} 37. fxe5+ {[%clk 0:01:27]}  Rxe5 {[%clk 0:00:38]} 38. Nh7+ {[%clk 0:01:11]}  Kg7 {[%clk 0:00:37]} 39. Rxd6 {[%clk 0:01:05]}  Kxh7 {[%clk 0:00:37]} 40. Rf6 {[%clk 0:01:01]}  Nd5 {[%clk 0:00:37]} 41. Rf7+ {[%clk 0:00:52]}  Kg6 {[%clk 0:00:37]} 42. Rb7 {[%clk 0:00:50]}  Nxe3+ {[%clk 0:00:24]} 43. Kg1 {[%clk 0:00:46]}  Re4 {[%clk 0:00:19]} 44. Rb6+ {[%clk 0:00:41]}  Kf7 {[%clk 0:00:15]} 45. Rxb4 {[%clk 0:00:36]}  f4 {[%clk 0:00:15]} 46. gxf4 {[%clk 0:00:32]}  Rxf4 {[%clk 0:00:16]} 47. Nc6 {[%clk 0:00:30]}  Rf1+ {[%clk 0:00:15]} 48. Kh2 {[%clk 0:00:30]}  Rf2+ {[%clk 0:00:16]} 49. Kg1 {[%clk 0:00:30]}  g3 {[%clk 0:00:14]} 50. Ne5+ {[%clk 0:00:00]}  Ke6 {[%clk 0:00:13]} 0-1

[Event "December 19 Early 2023"]
[Site "https://www.chess.com"]
[Date "2023.12.19"]
[Round "6"]
[White "Demchenko, Anton"]
[Black "Sahib Singh"]
[Result "1-0"]
[Board "37"]
[TimeControl "180+1"]
[WhiteFideId "4160258"]
[BlackFideId "25618342"]
[WhiteElo "2545"]
[BlackElo "2130"]
[WhiteTeam "SLO"]
[BlackTeam "IND"]
[WhiteClock "0:00:34"]
[BlackClock "0:00:00"]

1. a3 {[%clk 0:03:00]}  e5 {[%clk 0:02:59]} 2. c4 {[%clk 0:02:59]}  Nf6 {[%clk 0:02:49]} 3. d3 {[%clk 0:02:59]}  c5 {[%clk 0:02:42]} 4. e4 {[%clk 0:02:55]}  Nc6 {[%clk 0:02:42]} 5. Nc3 {[%clk 0:02:55]}  d6 {[%clk 0:02:40]} 6. Bg5 {[%clk 0:02:52]}  h6 {[%clk 0:02:39]} 7. Bxf6 {[%clk 0:02:52]}  Qxf6 {[%clk 0:02:39]} 8. g3 {[%clk 0:02:51]}  Nd4 {[%clk 0:02:37]} 9. Bh3 {[%clk 0:02:43]}  Nf3+ {[%clk 0:02:16]} 10. Kf1 {[%clk 0:02:32]}  Bxh3+ {[%clk 0:02:15]} 11. Nxh3 {[%clk 0:02:32]}  Nd4 {[%clk 0:02:08]} 12. Kg2 {[%clk 0:02:22]}  Qe6 {[%clk 0:02:03]} 13. Ng1 {[%clk 0:02:18]}  h5 {[%clk 0:01:52]} 14. h4 {[%clk 0:02:14]}  Be7 {[%clk 0:01:49]} 15. Nf3 {[%clk 0:02:12]}  Nc6 {[%clk 0:01:40]} 16. Nd5 {[%clk 0:02:07]}  Bd8 {[%clk 0:01:27]} 17. b4 {[%clk 0:02:08]}  O-O {[%clk 0:01:24]} 18. Rb1 {[%clk 0:02:00]}  b6 {[%clk 0:01:23]} 19. Qa4 {[%clk 0:01:22]}  Rc8 {[%clk 0:01:19]} 20. b5 {[%clk 0:01:17]}  Na5 {[%clk 0:01:12]} 21. Qd1 {[%clk 0:01:16]}  f5 {[%clk 0:01:11]} 22. exf5 {[%clk 0:01:11]}  Qxf5 {[%clk 0:01:04]} 23. Qe2 {[%clk 0:01:11]}  Qg6 {[%clk 0:00:50]} 24. Nd2 {[%clk 0:01:09]}  Rf7 {[%clk 0:00:44]} 25. Ne4 {[%clk 0:01:09]}  Ra8 {[%clk 0:00:33]} 26. Rhg1 {[%clk 0:00:54]}  a6 {[%clk 0:00:31]} 27. a4 {[%clk 0:00:52]}  axb5 {[%clk 0:00:31]} 28. axb5 {[%clk 0:00:53]}  Rfa7 {[%clk 0:00:29]} 29. Kh1 {[%clk 0:00:48]}  Nb7 {[%clk 0:00:20]} 30. Kh2 {[%clk 0:00:36]}  Ra2 {[%clk 0:00:19]} 31. Rb2 {[%clk 0:00:37]}  Ra1 {[%clk 0:00:11]} 32. Rxa1 {[%clk 0:00:36]}  Rxa1 {[%clk 0:00:12]} 33. Ra2 {[%clk 0:00:37]}  Rc1 {[%clk 0:00:03]} 34. Ra7 {[%clk 0:00:36]}  Na5 {[%clk 0:00:01]} 35. Ra8 {[%clk 0:00:36]}  Kh7 {[%clk 0:00:00]} 36. Rxd8 {[%clk 0:00:34]} 1-0

[Event "December 19 Early 2023"]
[Site "https://www.chess.com"]
[Date "2023.12.19"]
[Round "6"]
[White "Puzzlebot_1294"]
[Black "Bernadskiy, Vitaliy"]
[Result "0-1"]
[Board "39"]
[TimeControl "180+1"]
[BlackFideId "14100371"]
[WhiteElo "2658"]
[BlackElo "2494"]
[BlackTeam "UKR"]
[WhiteClock "0:00:00"]
[BlackClock "0:00:31"]

1. d4 {[%clk 0:03:00]}  Nf6 {[%clk 0:02:58]} 2. Bf4 {[%clk 0:02:51]}  c6 {[%clk 0:02:57]} 3. e3 {[%clk 0:02:44]}  Qb6 {[%clk 0:02:57]} 4. Nd2 {[%clk 0:02:44]}  Qxb2 {[%clk 0:02:54]} 5. Bd3 {[%clk 0:02:43]}  Qc3 {[%clk 0:02:52]} 6. Nf3 {[%clk 0:02:41]}  Qa5 {[%clk 0:02:48]} 7. O-O {[%clk 0:02:39]}  Qd8 {[%clk 0:02:48]} 8. e4 {[%clk 0:02:22]}  d5 {[%clk 0:02:47]} 9. e5 {[%clk 0:02:21]}  Nh5 {[%clk 0:02:46]} 10. Be3 {[%clk 0:02:21]}  g6 {[%clk 0:02:44]} 11. c3 {[%clk 0:02:19]}  Ng7 {[%clk 0:02:43]} 12. Qe2 {[%clk 0:02:16]}  Bf5 {[%clk 0:02:39]} 13. Rab1 {[%clk 0:02:14]}  Bxd3 {[%clk 0:02:37]} 14. Qxd3 {[%clk 0:02:15]}  b5 {[%clk 0:02:37]} 15. a4 {[%clk 0:02:13]}  a6 {[%clk 0:02:37]} 16. Nb3 {[%clk 0:02:12]}  Nd7 {[%clk 0:02:36]} 17. Bg5 {[%clk 0:02:05]}  Ne6 {[%clk 0:02:36]} 18. axb5 {[%clk 0:01:55]}  axb5 {[%clk 0:02:34]} 19. Ra1 {[%clk 0:01:55]}  Bg7 {[%clk 0:02:25]} 20. Rxa8 {[%clk 0:01:53]}  Qxa8 {[%clk 0:02:26]} 21. Ra1 {[%clk 0:01:53]}  Qc8 {[%clk 0:02:23]} 22. Ra7 {[%clk 0:01:50]}  h6 {[%clk 0:02:20]} 23. Bh4 {[%clk 0:01:39]}  Qb8 {[%clk 0:02:20]} 24. Ra6 {[%clk 0:01:31]}  Qb7 {[%clk 0:02:20]} 25. Ra2 {[%clk 0:01:27]}  Nb6 {[%clk 0:02:20]} 26. Na5 {[%clk 0:01:25]}  Qc7 {[%clk 0:02:20]} 27. Qb1 {[%clk 0:01:24]}  O-O {[%clk 0:02:17]} 28. Nb3 {[%clk 0:01:21]}  Na4 {[%clk 0:02:14]} 29. Qc2 {[%clk 0:01:19]}  Ra8 {[%clk 0:02:08]} 30. Bg3 {[%clk 0:01:18]}  Qc8 {[%clk 0:02:06]} 31. Nfd2 {[%clk 0:01:17]}  Bf8 {[%clk 0:02:02]} 32. Nb1 {[%clk 0:01:15]}  Nb6 {[%clk 0:02:02]} 33. f4 {[%clk 0:01:14]}  Ng7 {[%clk 0:01:59]} 34. Bf2 {[%clk 0:01:12]}  Ra4 {[%clk 0:01:55]} 35. Nc5 {[%clk 0:01:10]}  Rxa2 {[%clk 0:01:54]} 36. Qxa2 {[%clk 0:01:10]}  Qg4 {[%clk 0:01:50]} 37. Qd2 {[%clk 0:01:05]}  Nc4 {[%clk 0:01:42]} 38. Qc1 {[%clk 0:01:05]}  e6 {[%clk 0:01:38]} 39. Nd7 {[%clk 0:00:59]}  Be7 {[%clk 0:01:35]} 40. g3 {[%clk 0:00:42]}  Qe2 {[%clk 0:01:29]} 41. Nb8 {[%clk 0:00:33]}  Na5 {[%clk 0:01:20]} 42. Nd2 {[%clk 0:00:30]}  Nf5 {[%clk 0:01:19]} 43. Qa1 {[%clk 0:00:24]}  Bd8 {[%clk 0:01:18]} 44. Nf1 {[%clk 0:00:18]}  Qc4 {[%clk 0:00:57]} 45. Na6 {[%clk 0:00:15]}  Bb6 {[%clk 0:00:53]} 46. Qa3 {[%clk 0:00:14]}  Nb3 {[%clk 0:00:45]} 47. Qb2 {[%clk 0:00:09]}  Ba5 {[%clk 0:00:39]} 48. Nb4 {[%clk 0:00:06]}  Bxb4 {[%clk 0:00:38]} 49. cxb4 {[%clk 0:00:07]}  Nbxd4 {[%clk 0:00:39]} 50. Nd2 {[%clk 0:00:05]}  Qd3 {[%clk 0:00:35]} 51. Kg2 {[%clk 0:00:03]}  Qe2 {[%clk 0:00:32]} 52. Nf1 {[%clk 0:00:00]}  Qxb2 {[%clk 0:00:31]} 0-1

[Event "December 19 Early 2023"]
[Site "https://www.chess.com"]
[Date "2023.12.19"]
[Round "6"]
[White "Teterev, Vitaly"]
[Black "Pakleza, Zbigniew"]
[Result "0-1"]
[Board "47"]
[TimeControl "180+1"]
[WhiteFideId "13501429"]
[BlackFideId "1119290"]
[WhiteElo "2299"]
[BlackElo "2410"]
[WhiteTeam "BLR"]
[BlackTeam "POL"]
[WhiteClock "0:00:00"]
[BlackClock "0:01:04"]

1. e4 {[%clk 0:03:00]}  d6 {[%clk 0:03:00]} 2. d4 {[%clk 0:02:59]}  Nf6 {[%clk 0:03:01]} 3. Bd3 {[%clk 0:02:56]}  e5 {[%clk 0:03:01]} 4. c3 {[%clk 0:02:56]}  d5 {[%clk 0:03:01]} 5. dxe5 {[%clk 0:02:51]}  dxe4 {[%clk 0:03:02]} 6. Bb5+ {[%clk 0:02:48]}  c6 {[%clk 0:03:03]} 7. Qxd8+ {[%clk 0:02:46]}  Kxd8 {[%clk 0:03:04]} 8. Bc4 {[%clk 0:02:39]}  Ng4 {[%clk 0:03:03]} 9. f4 {[%clk 0:02:11]}  Bc5 {[%clk 0:02:31]} 10. Nh3 {[%clk 0:02:10]}  f6 {[%clk 0:02:26]} 11. Nd2 {[%clk 0:01:47]}  Ne3 {[%clk 0:02:21]} 12. Nxe4 {[%clk 0:01:34]}  Nxg2+ {[%clk 0:02:21]} 13. Ke2 {[%clk 0:01:14]}  Bg4+ {[%clk 0:02:02]} 14. Kd3 {[%clk 0:01:14]}  Bf5 {[%clk 0:01:52]} 15. Bd2 {[%clk 0:00:04]}  Kc7 {[%clk 0:01:44]} 16. Rae1 {[%clk 0:00:03]}  Bb6 {[%clk 0:01:15]} 17. Kc2 {[%clk 0:00:01]}  Nxe1+ {[%clk 0:01:14]} 18. Rxe1 {[%clk 0:00:02]}  Bxh3 {[%clk 0:01:14]} 19. exf6 {[%clk 0:00:01]}  gxf6 {[%clk 0:01:11]} 20. f5 {[%clk 0:00:02]}  Bxf5 {[%clk 0:01:05]} 21. Bf4+ {[%clk 0:00:02]}  Kc8 {[%clk 0:01:03]} 22. Kb3 {[%clk 0:00:00]}  Bxe4 {[%clk 0:01:04]} 0-1